bitfinex/quotes_ETHUSD_20251119
["timestamp","ask_amount","ask_price","bid_price","bid_amount"]
[1763576802001,5.55141971,2888.1,2888.0,0.191652]
[1763576802205,6.75595652,2888.1,2888.0,0.191652]
[1763576802510,2.99592837,2888.1,2888.0,0.191652]
[1763576802814,0.72502645,2888.1,2888.0,0.191652]
[1763576803385,1.62812155,2888.1,2888.0,0.191652]
[1763576803598,5.09060553,2888.1,2888.0,0.191652]
[1763576803787,1.92911995,2888.1,2888.0,0.191652]
[1763576804008,1.93092726,2888.1,2888.0,0.191652]
[1763576804181,2.65088454,2888.1,2888.0,0.191652]
[1763576804881,1.4449723,2888.1,2888.0,0.191652]
[1763576805083,1.93093869,2888.1,2888.0,0.191652]
[1763576805289,7.61606563,2888.1,2888.0,0.191652]
[1763576805594,0.72502645,2888.1,2888.0,0.654152]
[1763576805784,0.90565582,2888.8,2888.1,0.405504]
[1763576805986,0.72493967,2888.9,2888.5,0.405504]
[1763576806204,0.72493967,2889.2,2888.7,0.405504]
[1763576806409,0.72493967,2889.1,2888.6,0.4625]
[1763576806593,1.63059549,2889.3,2888.6,0.4625]
[1763576806802,0.72493967,2889.2,2888.7,0.405504]
[1763576807003,1.20754109,2889.7,2888.7,0.405504]
[1763576807204,0.7250984,2889.8,2888.9,0.405504]
[1763576807403,0.7250984,2889.9,2888.9,8.08678462]
[1763576807611,0.7250984,2889.8,2889.7,0.1865]
[1763576807815,0.7250984,2890.0,2889.7,0.1865]
[1763576808030,0.7250984,2889.9,2889.3,0.4625]
[1763576808208,0.7250984,2890.0,2889.3,0.405504]
[1763576808520,0.90637205,2890.1,2889.3,0.405504]
[1763576808521,0.7250984,2889.9,2889.4,0.4625]
[1763576808738,0.7250984,2889.8,2889.0,0.4625]
[1763576808887,1.63147045,2889.7,2889.0,0.4625]
[1763576809221,1.20754109,2889.9,2889.1,0.405504]
[1763576809222,0.7250984,2889.6,2889.1,0.405504]
[1763576809434,0.7250984,2889.5,2889.2,0.4625]
[1763576809637,0.7250984,2889.4,2888.8,0.4625]
[1763576809837,1.63147045,2889.3,2888.8,0.4625]
[1763576810134,0.7250984,2889.2,2888.6,0.1865]
[1763576810305,0.7250984,2889.3,2888.7,0.4625]
[1763576810507,0.7250984,2889.2,2888.7,0.4625]
[1763576810701,0.90637205,2889.4,2888.7,0.4625]
[1763576810702,0.7250984,2889.3,2888.7,0.4625]
[1763576811231,0.90637205,2889.5,2888.7,0.4625]
[1763576811232,0.7250984,2889.4,2888.7,0.4625]
[1763576811540,0.7250984,2889.3,2888.7,0.4625]
[1763576811739,1.63147045,2889.4,2888.7,0.4625]
[1763576811943,0.7250984,2889.3,2888.7,0.4625]
[1763576812434,0.28390115,2889.4,2888.7,0.4625]
[1763576812651,0.7250984,2889.3,2888.7,0.4625]
[1763576812952,0.28390115,2889.4,2888.7,0.4625]
[1763576812953,1.00899955,2889.4,2888.7,0.4625]
[1763576813241,0.7250984,2889.4,2888.7,0.4625]
[1763576813415,1.63147045,2889.5,2888.7,0.4625]
[1763576813744,0.7250984,2889.4,2888.7,0.4625]
[1763576813949,0.7250984,2889.3,2888.7,0.4625]
[1763576814157,0.7250984,2889.3,2888.6,0.1865]
[1763576814451,1.63147045,2889.3,2888.6,0.1865]
[1763576814655,1.63147045,2889.4,2888.6,0.1865]
[1763576814945,2.14069877,2889.3,2888.6,0.1865]
[1763576815129,1.63147045,2889.2,2888.5,0.001]
[1763576815435,1.63147045,2889.1,2888.5,0.001]
[1763576815737,0.90637205,2889.5,2888.5,0.4635]
[1763576816115,1.63221585,2889.7,2888.6,0.405504]
[1763576816320,0.90837205,2889.8,2888.6,3.86735959]
[1763576816531,0.002,2889.8,2888.8,0.405504]
[1763576816732,0.002,2889.8,2888.9,0.5885]
[1763576816923,0.002,2889.8,2889.0,0.405504]
[1763576817113,0.002,2889.8,2888.9,0.5885]
[1763576817315,0.002,2889.8,2888.9,0.126]
[1763576817644,0.002,2889.8,2889.1,0.405504]
[1763576818146,0.002,2889.8,2889.2,0.126]
[1763576818445,0.002,2889.8,2889.1,0.4625]
[1763576818644,0.002,2889.8,2889.1,0.5885]
[1763576819006,0.002,2889.8,2889.2,0.4625]
[1763576819344,1.80611526,2890.6,2889.2,0.4625]
[1763576819345,0.002,2890.8,2889.6,0.405504]
[1763576819547,0.002,2890.8,2890.1,0.1865]
[1763576819705,0.002,2890.8,2890.1,0.3125]
[1763576819906,0.002,2890.8,2890.2,0.868004]
[1763576820334,0.002,2890.8,2890.3,0.126]
[1763576820640,0.002,2890.8,2890.3,0.5885]
[1763576820828,0.002,2890.8,2890.1,0.1865]
[1763576821040,0.002,2890.8,2890.3,0.405504]
[1763576821235,0.002,2891.1,2890.3,8.08678462]
[1763576821451,0.002,2891.1,2890.4,2.02202209]
[1763576821654,0.002,2891.1,2890.1,0.1865]
[1763576821655,0.002,2891.1,2890.2,0.4625]
[1763576822008,0.002,2891.1,2890.1,0.3125]
[1763576822209,0.174,2891.1,2889.8,0.4625]
[1763576822411,7.68128062,2890.6,2889.0,0.1865]
[1763576822639,0.90637205,2890.0,2888.7,0.4625]
[1763576822953,2.94470109,2890.5,2889.1,0.1865]
[1763576822954,0.85876527,2890.5,2889.1,0.1865]
[1763576823126,0.90637205,2890.6,2889.1,0.1865]
[1763576823471,0.90637205,2890.6,2888.3,0.4625]
[1763576823472,0.90637205,2889.9,2888.3,0.4625]
[1763576823767,0.90637205,2889.0,2887.6,0.4625]
[1763576823968,0.90637205,2888.8,2887.6,0.4625]
[1763576824129,5.27524934,2888.6,2887.4,0.1865]
[1763576824337,6.3119487,2888.6,2887.4,0.1865]
[1763576824522,5.26380133,2888.6,2887.4,0.1865]
[1763576824722,6.48017337,2888.6,2887.4,0.1865]
[1763576824923,6.75112903,2888.6,2887.4,0.1865]
[1763576825118,1.62991668,2888.6,2887.4,0.1865]
[1763576825357,0.72292404,2888.6,2887.7,0.4625]
[1763576825562,5.08650375,2889.0,2887.7,0.4625]
[1763576825856,0.72227766,2888.9,2887.7,0.4625]
[1763576826036,1.80973949,2889.5,2888.1,0.4625]
[1763576826356,1.56775467,2889.4,2888.1,0.4625]
[1763576826526,0.72268442,2889.3,2888.1,0.4625]
[1763576826722,1.38769224,2889.4,2888.1,0.4625]
[1763576826951,0.72268442,2889.3,2888.1,0.4625]
[1763576827273,1.38769224,2889.4,2888.1,0.4625]
[1763576828360,0.90274685,2889.9,2888.5,0.4828]
[1763576828563,7.85328062,2889.8,2888.5,0.001]
[1763576828759,0.90274685,2889.5,2888.5,0.001]
[1763576829078,2.83685879,2889.7,2888.5,0.001]
[1763576829079,0.90274685,2889.2,2888.5,0.001]
[1763576829270,0.90274685,2888.9,2888.5,0.001]
[1763576829578,0.21102879,2888.9,2888.5,0.001]
[1763576830372,0.90699264,2888.8,2888.5,0.001]
[1763576830536,1.6293177,2888.8,2888.5,0.001]
[1763576830738,1.07474685,2888.7,2888.5,0.001]
[1763576831031,0.90274685,2888.6,2888.5,0.001]
[1763576831229,0.90699264,2888.5,2888.2,0.001]
[1763576831493,0.90699264,2888.5,2887.9,0.001]
[1763576831494,1.37318671,2888.3,2887.9,0.001]
[1763576831636,0.90699264,2887.1,2886.0,1.0]
[1763576831855,0.72232506,2887.1,2886.1,0.4818]
[1763576832189,0.57335791,2887.8,2886.2,0.03464763]
[1763576832389,0.57335791,2887.3,2886.2,0.4818]
[1763576832687,0.90699264,2888.0,2886.2,0.4818]
[1763576832892,0.57335791,2887.9,2887.2,0.188]
[1763576833194,0.172,2888.3,2887.2,0.188]
[1763576833195,0.57335791,2888.3,2887.3,0.4818]
[1763576833346,0.57335791,2888.0,2887.3,0.4818]
[1763576835518,0.90699264,2888.6,2887.3,0.4818]
[1763576835778,0.90699264,2888.6,2887.4,0.405504]
[1763576835779,0.23715294,2888.6,2887.4,0.405504]
[1763576835955,3.67256134,2888.9,2887.3,0.6068]
[1763576835956,0.53659957,2888.5,2887.3,0.6068]
[1763576836152,3.99869509,2888.5,2887.3,0.6068]
[1763576836351,3.99869509,2888.5,2887.3,0.4818]
[1763576836352,0.90699264,2888.4,2887.3,0.4818]
[1763576836677,0.53659957,2888.3,2887.3,0.4818]
[1763576836897,0.21624272,2888.2,2886.8,0.4818]
[1763576837057,1.10104024,2888.1,2886.8,0.6068]
[1763576837258,0.53659957,2888.1,2886.9,0.125]
[1763576837459,0.53659957,2888.1,2886.6,0.4818]
[1763576837651,2.00803288,2888.1,2886.6,0.4818]
[1763576837848,1.72364673,2888.0,2886.7,0.03464163]
[1763576838175,3.46190847,2888.6,2886.6,0.4818]
[1763576838176,0.53659957,2888.4,2886.6,0.4818]
[1763576838374,0.53659957,2888.0,2886.6,4.07106109]
[1763576838570,0.53659957,2888.5,2886.7,0.405504]
[1763576838881,0.53659957,2888.5,2886.9,0.405504]
[1763576839045,0.56444067,2888.9,2886.9,0.405504]
[1763576839247,0.56444067,2888.9,2886.6,10.39281794]
[1763576839248,0.53659957,2888.8,2887.0,0.6068]
[1763576839469,0.53659957,2888.8,2887.1,0.405504]
[1763576839688,0.53659957,2888.8,2887.3,0.405504]
[1763576840194,0.53659957,2888.8,2887.5,0.405504]
[1763576840363,0.53659957,2889.1,2887.5,0.405504]
[1763576840573,1.05401638,2889.0,2887.7,0.405504]
[1763576840908,0.48957571,2889.0,2887.8,0.125]
[1763576841098,0.53659957,2888.9,2886.4,7.11509605]
[1763576841299,0.53659957,2888.9,2887.8,0.4818]
[1763576841610,1.25455849,2888.9,2887.8,0.4818]
[1763576841904,0.73885409,2888.8,2887.8,0.4818]
[1763576842109,0.53659957,2888.7,2887.4,0.125]
[1763576842306,0.53659957,2888.7,2886.5,6.9288065]
[1763576842307,0.90699264,2888.5,2886.4,0.188]
[1763576842474,0.90699264,2888.2,2886.6,0.4818]
[1763576842669,0.90699264,2888.2,2886.5,0.4818]
[1763576842670,0.89750833,2887.9,2886.5,0.4818]
[1763576842904,0.53659957,2887.8,2886.5,0.4818]
[1763576843139,1.32000844,2888.1,2886.5,0.4818]
[1763576843285,0.89750833,2888.5,2886.5,0.4818]
[1763576843286,0.53659957,2888.0,2886.5,0.4818]
[1763576843930,1.10104024,2888.0,2886.5,0.4818]
[1763576844122,0.53659957,2887.9,2886.5,0.4818]
[1763576844331,0.53659957,2887.9,2886.1,0.4818]
[1763576844332,1.80450097,2887.7,2886.1,0.4818]
[1763576844623,0.53659957,2887.6,2886.1,0.4818]
[1763576844818,0.30587211,2887.5,2886.1,0.4818]
[1763576845017,0.84247168,2887.5,2886.1,0.4818]
[1763576845323,6.92448844,2888.3,2886.2,0.530504]
[1763576845637,0.89750833,2887.9,2886.2,0.4735]
[1763576845825,0.89750833,2887.6,2886.2,0.4735]
[1763576846025,1.6152634,2887.7,2886.2,0.4735]
[1763576846234,0.90699264,2887.4,2886.2,0.4735]
[1763576847143,0.90699264,2887.4,2886.2,0.5985]
[1763576847525,0.90699264,2887.4,2886.0,1.0]
[1763576847526,0.90699264,2887.4,2886.3,0.4735]
[1763576847733,1.44359221,2887.4,2886.2,0.125]
[1763576848053,0.53659957,2887.3,2886.1,0.001]
[1763576848345,0.2160862,2887.2,2886.3,0.4735]
[1763576848706,0.2160862,2887.2,2886.4,0.405504]
[1763576848909,1.12217894,2887.6,2887.1,0.1959]
[1763576848910,0.2151863,2887.6,2887.1,0.1959]
[1763576849206,6.9253851,2888.0,2886.6,0.405504]
[1763576849408,0.71734883,2887.9,2886.6,0.405504]
[1763576849608,1.62434147,2887.9,2886.6,0.405504]
[1763576849828,1.62434147,2887.9,2886.6,0.879004]
[1763576850216,1.62434147,2887.9,2886.5,0.3209]
[1763576850217,0.53659957,2887.8,2886.8,0.405504]
[1763576850416,1.97660557,2888.8,2887.0,0.405504]
[1763576850417,1.07392175,2888.8,2887.0,0.405504]
[1763576850657,1.07392175,2888.8,2886.7,0.4735]
[1763576850658,0.53659957,2888.3,2887.2,0.405504]
[1763576850840,0.53659957,2888.7,2887.2,0.405504]
[1763576851041,0.53659957,2888.7,2887.4,0.405504]
[1763576851242,1.2547352,2888.7,2887.4,0.405504]
[1763576851541,1.2547352,2888.7,2887.6,0.405504]
[1763576851739,0.28930976,2888.6,2887.6,0.405504]
[1763576852037,0.28930976,2888.6,2887.7,0.4735]
[1763576852242,0.28930976,2888.6,2887.8,0.405504]
[1763576852444,0.53659957,2888.7,2887.8,0.405504]
[1763576852748,1.07392175,2888.8,2888.0,0.405504]
[1763576852749,1.79205738,2888.8,2888.0,0.405504]
[1763576853039,0.71813563,2888.7,2888.0,0.405504]
[1763576853337,0.71813563,2888.7,2887.6,0.125]
[1763576853338,0.17641342,2888.8,2887.8,0.1959]
[1763576853514,0.52826624,2888.6,2887.8,0.1959]
[1763576853718,0.23327672,2888.5,2887.8,0.3209]
[1763576853925,1.14026936,2888.5,2887.8,0.7944]
[1763576854102,1.85840499,2888.5,2887.8,0.7944]
[1763576854307,0.95141235,2888.5,2887.8,0.7944]
[1763576854527,0.95141235,2888.5,2887.8,0.6694]
[1763576854726,0.23866712,2888.4,2887.8,0.7944]
[1763576854923,0.23866712,2888.4,2887.8,0.6694]
[1763576855161,0.95680275,2888.4,2887.8,0.1959]
[1763576855364,0.52826624,2888.3,2887.4,0.4735]
[1763576855548,0.52826624,2888.3,2887.5,0.4735]
[1763576855549,0.71813563,2888.3,2887.5,0.4735]
[1763576855732,0.71813563,2888.4,2887.6,0.530504]
[1763576855938,1.12138366,2888.4,2887.6,0.405504]
[1763576856242,2.36778553,2888.4,2887.7,0.125]
[1763576856438,1.24640187,2888.3,2887.7,0.125]
[1763576856637,0.52826624,2888.3,2887.6,0.879004]
[1763576856843,0.52826624,2888.3,2887.6,1.004004]
[1763576857041,0.71813563,2888.4,2887.7,0.4735]
[1763576857464,0.56444067,2888.4,2887.7,0.4735]
[1763576857631,0.56444067,2888.4,2887.0,0.1959]
[1763576857632,1.09270691,2888.3,2887.0,0.1959]
[1763576857967,0.23689416,2888.4,2887.0,0.1959]
[1763576857968,0.56444067,2888.2,2887.4,0.405504]
[1763576858168,0.89750833,2888.3,2887.4,0.869604]
[1763576858347,1.80450097,2888.3,2887.4,0.869604]
[1763576858544,5.98491755,2888.3,2887.5,0.4641]
[1763576858751,0.71813563,2888.2,2887.5,0.4641]
[1763576859065,0.71813563,2888.2,2887.6,0.405504]
[1763576859268,0.71813563,2888.3,2887.6,0.405504]
[1763576859478,0.71813563,2888.5,2887.7,0.4641]
[1763576859676,1.61564396,2888.5,2887.8,0.125]
[1763576859980,2.24306637,2888.5,2887.7,0.4641]
[1763576860140,2.24306637,2888.5,2887.8,0.125]
[1763576860474,5.70511448,2888.5,2887.3,0.4641]
[1763576860636,2.13026141,2888.4,2887.4,0.405504]
[1763576860831,1.15710895,2888.5,2887.4,0.405504]
[1763576860832,0.71813563,2888.3,2887.6,0.405504]
[1763576861177,0.002,2888.8,2887.9,0.405504]
[1763576861329,0.002,2888.8,2888.1,0.405504]
[1763576861535,0.002,2888.8,2888.1,0.125]
[1763576861774,2.31911842,2888.7,2887.8,0.125]
[1763576862061,0.89750833,2888.4,2887.1,0.4641]
[1763576862277,0.89750833,2888.3,2887.2,0.125]
[1763576862473,3.46248398,2888.1,2887.2,0.125]
[1763576862674,0.72340117,2888.0,2887.3,0.4641]
[1763576862882,2.97220491,2889.0,2887.3,0.4641]
[1763576862883,0.72340117,2888.1,2887.4,0.125]
[1763576863031,0.72340117,2888.2,2887.5,0.405504]
[1763576863237,0.89750833,2888.3,2887.5,0.4641]
[1763576863468,1.42417217,2888.2,2887.6,0.125]
[1763576863765,2.14757334,2888.2,2887.6,0.125]
[1763576864433,0.72340117,2888.1,2887.7,0.405504]
[1763576864632,0.72340117,2888.2,2887.8,0.4641]
[1763576864833,0.89750833,2888.5,2887.8,0.4641]
[1763576865038,0.72340117,2888.5,2887.8,0.4641]
[1763576865238,0.72340117,2888.5,2887.9,0.405504]
[1763576865465,0.89750833,2888.6,2887.9,0.405504]
[1763576865466,0.89750833,2888.6,2888.0,0.4641]
[1763576865653,1.6209095,2888.7,2888.0,0.4641]
[1763576865856,0.72340117,2888.6,2888.1,0.405504]
[1763576866057,0.002,2888.8,2888.2,0.4641]
[1763576866267,0.002,2888.8,2888.3,0.405504]
[1763576866652,0.002,2888.8,2888.4,0.4641]
[1763576866838,0.002,2888.8,2888.5,0.125]
[1763576867040,0.002,2888.8,2888.4,0.4641]
[1763576867234,0.002,2888.8,2887.9,0.4641]
[1763576867437,0.51661745,2888.8,2887.9,0.4641]
[1763576867753,1.41412578,2888.8,2887.9,0.5891]
[1763576867950,0.72086642,2888.7,2887.9,0.5891]
[1763576868256,1.31077186,2888.7,2887.9,0.4641]
[1763576868459,3.4620045,2888.5,2887.6,0.405504]
[1763576868664,0.72086642,2888.4,2887.5,0.4641]
[1763576869559,0.72086642,2888.5,2887.6,0.405504]
[1763576869760,0.002,2888.8,2887.6,0.405504]
[1763576870066,0.002,2888.8,2887.7,0.5891]
[1763576870067,3.4617648,2888.7,2887.7,0.5891]
[1763576870277,1.41202681,2888.6,2887.7,0.5891]
[1763576870689,1.41202681,2888.6,2887.8,0.4641]
[1763576870904,0.71948571,2888.5,2887.8,0.5891]
[1763576871117,0.71948571,2888.5,2887.4,0.4641]
[1763576871406,1.7637897,2888.5,2887.4,0.4641]
[1763576871619,1.40124567,2888.4,2887.5,0.125]
[1763576871961,0.87155913,2888.4,2887.4,0.4641]
[1763576872181,1.91586312,2888.4,2887.4,0.4641]
[1763576872391,1.95129663,2888.3,2887.4,0.4641]
[1763576872592,3.03939595,2888.3,2887.4,0.4641]
[1763576872795,1.11137304,2888.2,2887.4,0.4641]
[1763576873623,3.46208713,2888.5,2887.4,0.4641]
[1763576873766,1.62785673,2888.4,2887.0,0.1969]
[1763576873967,0.89750833,2888.2,2887.1,0.4641]
[1763576874287,0.51461745,2888.1,2887.1,0.4641]
[1763576874500,1.94181232,2888.1,2887.0,0.1969]
[1763576874804,1.89412437,2888.0,2887.0,0.661]
[1763576874964,0.72086409,2887.9,2887.0,0.661]
[1763576875162,0.78088509,2888.0,2887.1,0.4641]
[1763576875367,1.50174918,2888.0,2887.1,0.4641]
[1763576875596,0.89750833,2888.3,2887.2,0.405504]
[1763576875801,2.44251837,2889.1,2887.2,0.405504]
[1763576875802,2.1330838,2888.4,2887.3,0.4641]
[1763576876097,0.89750833,2888.7,2887.4,0.405504]
[1763576876260,0.20961861,2888.7,2887.4,0.405504]
[1763576876463,0.51461745,2888.6,2887.5,0.4641]
[1763576876664,6.5022737,2888.6,2887.5,0.4641]
[1763576876899,0.20961861,2888.7,2887.6,0.125]
[1763576876900,0.72127063,2888.5,2887.6,0.125]
[1763576877107,0.20961861,2888.7,2887.5,0.4641]
[1763576877108,3.67143145,2888.7,2887.5,0.4641]
[1763576877313,2.98286558,2888.6,2887.5,0.4641]
[1763576877612,0.72127063,2888.5,2887.5,0.4641]
[1763576877822,0.72127063,2888.5,2887.5,0.5891]
[1763576878313,0.72127063,2888.5,2887.5,0.4641]
[1763576878477,2.5257716,2888.6,2887.6,0.5891]
[1763576878678,0.72127063,2888.5,2887.6,0.5891]
[1763576878874,1.61877896,2888.7,2887.7,0.4641]
[1763576879187,0.72127063,2888.6,2887.7,0.4641]
[1763576879383,0.002,2888.8,2887.8,0.405504]
[1763576879582,0.002,2888.8,2887.9,0.125]
[1763576879810,0.002,2888.8,2888.0,0.125]
[1763576880123,0.34636215,2888.7,2888.0,0.125]
[1763576880423,1.63026327,2888.8,2888.0,0.125]
[1763576880424,0.002,2888.8,2888.1,0.44012883]
[1763576880735,0.002,2888.8,2888.3,0.405504]
[1763576880876,0.002,2888.8,2888.4,0.125]
[1763576881073,0.002,2888.8,2887.4,0.405504]
[1763576881276,0.002,2888.8,2887.6,0.405504]
[1763576881807,0.002,2888.8,2887.8,0.405504]
[1763576882022,0.002,2888.8,2887.9,0.4641]
[1763576882521,0.002,2888.8,2888.1,0.405504]
[1763576882883,0.002,2888.8,2888.2,0.5891]
[1763576883252,0.48163445,2889.5,2888.3,0.405504]
[1763576883410,0.52968654,2890.0,2888.3,0.405504]
[1763576883411,0.89750833,2890.3,2889.3,0.405504]
[1763576883711,0.79486037,2890.2,2889.3,0.125]
[1763576883914,0.51522172,2890.1,2889.2,0.7858]
[1763576884079,0.48163445,2890.0,2889.2,0.6608]
[1763576884533,1.01132099,2890.0,2889.2,0.6608]
[1763576884709,0.72178543,2890.1,2889.3,0.4641]
[1763576884887,0.52968654,2890.0,2889.3,0.4641]
[1763576885092,2.15846461,2890.2,2889.3,0.4641]
[1763576885279,2.19060997,2890.1,2889.3,0.4641]
[1763576885475,1.99851108,2890.1,2889.3,0.4641]
[1763576885677,1.80450097,2889.9,2888.7,0.1967]
[1763576885905,1.80450097,2889.9,2888.0,0.1967]
[1763576885906,0.89750833,2889.6,2888.0,0.6608]
[1763576886089,2.52065929,2889.8,2888.0,0.6608]
[1763576886090,0.89750833,2889.3,2888.1,0.4641]
[1763576886295,0.89750833,2889.3,2888.0,0.1967]
[1763576886296,0.89750833,2889.1,2888.0,0.1967]
[1763576886520,1.32416924,2889.0,2888.0,0.1967]
[1763576886688,0.72053651,2888.9,2888.1,0.4641]
[1763576886890,0.7944827,2889.0,2888.1,0.4641]
[1763576886891,1.03338476,2889.0,2888.1,0.4641]
[1763576887107,0.72053651,2889.2,2888.1,0.4641]
[1763576887619,1.20217096,2889.2,2888.1,0.5891]
[1763576888789,0.90699264,2889.1,2888.1,0.5891]
[1763576888989,1.62752915,2889.1,2888.1,0.5891]
[1763576889234,1.62752915,2889.1,2888.1,0.4641]
[1763576889386,0.55703647,2889.0,2888.0,0.1967]
[1763576889591,1.03867092,2889.0,2888.0,0.6823]
[1763576889927,1.03867092,2889.0,2888.0,0.8073]
[1763576890368,0.48163445,2888.9,2888.0,0.6823]
[1763576890630,0.48163445,2888.9,2887.7,0.405504]
[1763576890631,1.19884865,2888.9,2887.9,0.125]
[1763576890837,0.90699264,2888.7,2887.9,0.125]
[1763576891149,0.90699264,2888.7,2887.7,0.891104]
[1763576891343,0.90699264,2888.7,2887.5,0.4856]
[1763576891344,0.90699264,2888.4,2887.5,0.4856]
[1763576891513,0.71739488,2888.4,2887.5,0.4856]
[1763576891707,0.2106022,2888.4,2887.5,0.4856]
[1763576892305,12.00980874,2888.7,2887.5,0.4856]
[1763576892568,0.90699264,2888.2,2887.0,0.1969]
[1763576892858,0.90699264,2888.0,2887.0,0.1969]
[1763576893138,0.45077612,2887.9,2887.0,0.001]
[1763576893498,8.19705275,2887.8,2887.0,0.001]
[1763576893700,2.18581154,2887.7,2887.0,0.001]
[1763576893915,0.90699264,2887.2,2887.0,0.001]
[1763576894131,1.62399726,2887.2,2887.0,0.001]
[1763576894336,0.024,2887.1,2887.0,0.001]
[1763576894530,0.51319278,2887.1,2886.0,1.0]
[1763576894715,3.46476335,2886.2,2886.0,1.0]
[1763576894903,0.90699264,2886.8,2886.0,1.0]
[1763576895105,0.236719,2887.0,2886.1,0.1905]
[1763576895106,0.213719,2887.0,2886.1,0.1905]
[1763576895331,3.03776388,2887.3,2886.1,0.1905]
[1763576895531,3.03776388,2887.3,2886.2,0.03464763]
[1763576895532,0.71633866,2887.2,2886.2,0.03464763]
[1763576895720,5.2214783,2887.7,2886.2,0.52024763]
[1763576895721,1.45934023,2887.7,2886.2,0.52024763]
[1763576895955,0.51692425,2888.0,2886.3,0.405504]
[1763576896154,0.71674816,2888.2,2886.3,0.405504]
[1763576896371,3.92994965,2888.8,2886.5,0.405504]
[1763576896558,0.71715841,2888.7,2886.7,0.405504]
[1763576896760,0.44523186,2888.8,2886.6,0.03464283]
[1763576896761,1.16239027,2888.8,2886.9,0.405504]
[1763576896962,0.89750833,2889.4,2887.1,0.405504]
[1763576897270,0.89750833,2889.4,2886.6,0.4856]
[1763576897271,0.51692425,2889.4,2887.3,0.405504]
[1763576897584,8.19705275,2889.1,2887.4,0.4856]
[1763576897772,1.84807286,2889.0,2887.4,0.4856]
[1763576898076,2.98399818,2889.0,2887.4,0.4856]
[1763576898243,1.62436866,2888.9,2887.4,0.4856]
[1763576898449,0.51692425,2888.8,2887.4,0.4856]
[1763576899272,0.51692425,2888.8,2887.6,0.405504]
[1763576899602,4.27467004,2888.8,2887.7,0.4856]
[1763576899779,4.27467004,2888.8,2887.3,0.4856]
[1763576899780,7.75931601,2888.8,2887.3,0.4856]
[1763576899933,0.71660907,2888.7,2887.4,0.405504]
[1763576900274,0.95219412,2888.6,2887.5,0.4856]
[1763576900481,0.51692425,2888.6,2887.5,0.4856]
[1763576900648,0.81970527,2889.0,2887.5,0.4856]
[1763576900649,8.713977,2889.1,2887.6,0.405504]
[1763576900849,10.02064457,2889.1,2887.6,0.405504]
[1763576901209,0.51692425,2889.8,2889.0,0.1905]
[1763576901491,0.89950833,2890.0,2889.0,0.1905]
[1763576901492,0.002,2890.0,2889.0,0.1905]
[1763576901639,0.002,2890.0,2889.1,0.4856]
[1763576901835,0.002,2890.0,2889.2,0.405504]
[1763576902040,0.002,2890.3,2889.2,0.405504]
[1763576902268,0.002,2891.7,2890.3,0.405504]
[1763576902470,7.55657029,2891.6,2890.2,0.1905]
[1763576902674,0.90699264,2891.3,2890.5,0.405504]
[1763576902874,2.44451837,2891.4,2890.7,0.405504]
[1763576903039,2.44451837,2891.4,2891.0,0.1905]
[1763576903241,0.002,2891.4,2890.6,0.6106]
[1763576903650,0.002,2891.4,2890.7,0.891104]
[1763576903900,0.002,2891.7,2890.7,0.891104]
[1763576904119,0.002,2892.0,2890.9,0.405504]
[1763576904262,0.002,2892.0,2891.1,0.405504]
[1763576904607,0.002,2893.7,2892.0,8.19705275]
[1763576904769,16.4783831,2892.8,2892.7,0.596004]
[1763576904968,16.4783831,2892.8,2892.7,0.1905]
[1763576905291,7.61099932,2892.8,2892.7,1.081604]
[1763576905462,7.61099932,2892.8,2892.3,0.405504]
[1763576905801,7.61099932,2892.8,2892.4,0.4693]
[1763576905961,7.61099932,2892.8,2892.2,0.1994]
[1763576906156,7.61099932,2892.8,2892.3,0.125]
[1763576906483,8.37209925,2892.8,2891.8,0.1994]
[1763576906660,0.90699264,2892.7,2891.8,0.1994]
[1763576906855,7.61099932,2892.8,2891.9,0.999804]
[1763576907155,7.61099932,2892.8,2892.0,0.405504]
[1763576907362,7.61099932,2892.8,2892.2,0.405504]
[1763576907584,7.61099932,2892.8,2892.3,0.4693]
[1763576907902,7.61099932,2892.8,2892.4,0.530504]
[1763576908200,7.61099932,2892.8,2892.4,0.405504]
[1763576908416,7.61099932,2892.8,2892.6,0.405504]
[1763576908558,7.61099932,2892.8,2892.7,0.125]
[1763576909570,7.61099932,2892.8,2892.7,0.4693]
[1763576909897,7.61099932,2892.8,2892.7,0.5943]
[1763576910305,7.61099932,2892.8,2892.2,0.125]
[1763576910609,7.61099932,2892.8,2892.3,0.405504]
[1763576910942,0.002,2893.7,2892.3,1.78179664]
[1763576911057,0.002,2893.7,2892.5,0.1]
[1763576911257,0.002,2893.7,2892.4,0.405504]
[1763576911258,0.002,2893.7,2892.8,1.31249664]
[1763576911459,0.002,2893.7,2893.0,0.405504]
[1763576911982,0.002,2893.7,2893.1,8.31741085]
[1763576912187,0.002,2893.7,2893.2,1.31249664]
[1763576912357,0.002,2893.7,2893.3,0.124]
[1763576912560,0.002,2893.7,2893.5,0.405504]
[1763576912875,0.002,2893.7,2893.6,0.529504]
[1763576913208,0.002,2893.7,2893.6,0.405504]
[1763576913675,0.002,2893.7,2893.6,0.529504]
[1763576913875,0.002,2893.7,2892.0,0.90699264]
[1763576914062,0.002,2893.7,2892.1,0.66048293]
[1763576914261,0.002,2893.7,2892.2,0.405504]
[1763576914595,0.002,2893.7,2892.5,1.31249664]
[1763576914774,0.002,2893.7,2892.8,0.405504]
[1763576914975,0.002,2893.7,2892.5,0.90699264]
[1763576914976,0.002,2893.7,2893.0,0.405504]
[1763576915294,0.002,2893.7,2892.2,1.0384827]
[1763576915295,0.002,2893.7,2892.1,0.43648293]
[1763576915497,0.002,2893.7,2891.8,0.1994]
[1763576915800,0.002,2893.7,2891.9,0.124]
[1763576916167,0.4811,2893.6,2891.8,0.88009398]
[1763576916359,0.4811,2893.6,2892.0,0.124]
[1763576916565,0.4811,2893.6,2891.8,0.1994]
[1763576916566,8.31741085,2893.4,2891.8,0.1994]
[1763576916869,1.31284109,2893.3,2891.9,0.124]